{"text_format":"1","workbook":"xlsx","n_sheets":6,"sheets":["OBSAH"," Příjmy odboru","akční plán 2018 - A","akční plán 2018 - B","akční plán 2018 - C","akční plán 2018 - D"],"not_rendered":{"charts":0,"images":0,"macros":1,"external_links":0,"defined_names":5,"comments":0,"pivot_tables":0},"unopened":[],"bounds":{"document_bytes":16777216,"sheet_cells":100000,"rows_first":2000,"rows_last":500,"rows_between":2000,"halvings":0,"cell_chars":16384,"cell_head_chars":4096},"cells_cut":0,"cells_raw":0,"read":"whole","date_system":"1900"}

{"sheet":"OBSAH","index":0,"n_rows":6,"n_cols":1,"rows_kept":6,"cut":false,"hidden":false,"merged":[[5,0,6,10]]}
[]
[]
[]
["STRATEGICKÝ PLÁN ROZVOJE MĚSTA / Akční plán 2018"]
[]
["Akční plán byl aktualizován v souladu s návrhem rozpočtu předkládaným v dubnu 2018 Zastupitelstvu města Jihlavy ke schválení. Nově zařazené aktivity a projekty jsou v dokumentu vyznačeny zelenou barvou."]

{"sheet":" Příjmy odboru","index":1,"n_rows":47,"n_cols":13,"rows_kept":47,"cut":false,"hidden":true,"merged":[]}
[]
[null,"Odbor:"]
[null,"ORG","§","pol.","Název","Návrh příjmů 2018 \nv tis. Kč"]
[]
[]
[]
[]
[]
[]
[]
[]
[]
[]
[]
[]
[null,null,null,null,null,null,null,null,null,null,null,null,"T"]
[null,null,null,null,null,null,null,null,null,null,null,null,"KP"]
[null,null,null,null,null,null,null,null,null,null,null,null,"KT"]
[null,null,null,null,null,null,null,null,null,null,null,null,"EO"]
[null,null,null,null,null,null,null,null,null,null,null,null,"OI"]
[null,null,null,null,null,null,null,null,null,null,null,null,"OŠKT"]
[null,null,null,null,null,null,null,null,null,null,null,null,"ORM"]
[null,null,null,null,null,null,null,null,null,null,null,null,"MO"]
[null,null,null,null,null,null,null,null,null,null,null,null,"OSR"]
[null,null,null,null,null,null,null,null,null,null,null,null,"ÚÚP"]
[null,null,null,null,null,null,null,null,null,null,null,null,"SÚ"]
[null,null,null,null,null,null,null,null,null,null,null,null,"OŽÚ"]
[null,null,null,null,null,null,null,null,null,null,null,null,"OŽP"]
[null,null,null,null,null,null,null,null,null,null,null,null,"SPO"]
[null,null,null,null,null,null,null,null,null,null,null,null,"OD"]
[null,null,null,null,null,null,null,null,null,null,null,null,"OSV"]
[null,null,null,null,null,null,null,null,null,null,null,null,"MP"]
[]
[]
[]
[]
[]
[]
[]
[]
[]
[]
[]
[]
[]
[]
[null,null,null,null,"Příjmy celkem",{"$f":"SUM(F4:F46)","v":0}]

{"sheet":"akční plán 2018 - A","index":2,"n_rows":15,"n_cols":4,"rows_kept":15,"cut":false,"hidden":false,"merged":[[3,0,3,1],[14,0,14,1],[2,0,2,3]]}
["STRATEGICKÝ PLÁN ROZVOJE MĚSTA / Akční plán 2018"]
[]
["Priorita A - vzdělávání, podnikání a zaměstnanost"]
["projekt / aktivita",null,"rozpočet 2018 v tis. Kč","dotace"]
["A1. Aktivní koordinace systému kariérního poradenství a vzdělávání"]
[]
["A2. Podporovat kvalitu v oblasti předškolního a základního vzdělávání na území města"]
[null,"Vybavenost a modernizace předškolních a školských zařízení (MŠ Dvořákova, MŠ Seifertova 4A, MŠ Riegrova, MŠ Hálkova, ZŠ Březinova, TG. Masaryka, ZŠ Křížová, MŠ Na Dolech)",{"$f":"63871+3500+28000","v":95371},34181]
[null,"Místní akční plán pro ORP Jihlava",750,250]
["A3. Vytvářet podmínky pro udržení a rozvoj vysokého školství ve městě"]
[null,"Podpora statutárního města Jihlavy ke stabilizaci a personálnímu rozvoji VŠPJ ke zvýšení kvality vzdělávání",1050]
["A4. Využívat potenciál místních kulturních a uměleckých aktivit pro rozvoj vzdělávání "]
[null,"Inkubátor \"kultura vzdělává\"",150]
[null,"Rozšíření grantového systému pro kulturu o vzdělávací projekty (Dotační program Jihlava vzdělává kulturou 2018)",500]
["CELKEM",null,{"$f":"SUM(C6:C14)","v":97821},{"$f":"SUM(D6:D14)","v":34431}]

{"sheet":"akční plán 2018 - B","index":3,"n_rows":21,"n_cols":4,"rows_kept":21,"cut":false,"hidden":false,"merged":[[3,0,3,1],[20,0,20,1],[2,0,2,3]]}
["STRATEGICKÝ PLÁN ROZVOJE MĚSTA / Akční plán 2018"]
[]
["Priorita B - Sociální oblast, zdravotnictví a bezpečnost"]
["projekt / aktivita",null,"Rozpočet 2018 v tis. Kč","dotace"]
["B1. Vytvoření systému efektivního využívání kapacit zařízení sociální péče a rozvoj nových zařízení a služeb"]
[null,"Chráněné bydlení pro osoby se zdravotním postižením v Jihlavě",{"$f":"4251+1000","v":5251},1953]
[null,"Rekonstrukce objektu ul. Žižkova 106, Jihlava, pro potřeby ICSS",42980,1800]
[null,"Rozvoj Denního a týdeního stacionáře Jihlava - II. etapa",6800,4050]
[null,"Komunitní centrum Jihlava",{"$f":"2500+5000","v":7500}]
["B2. Zvýšení povědomí občanů města o zdravém životním stylu a významu prevence"]
[null," Výdaje spojené s projektem Zdravé město a místní Agendou 21",800,60]
[null," "]
[]
[]
["B3. Posílení bezpečnosti na území města a zvýšení odolnosti proti krizovým situacím"]
[null,"Zvýšení bezpečnosti Metropolitní sítě statutárního města Jihlavy na úrovni perimetru",7000]
[null,"Obnova a digitalizace monitorovacího kamerového a dohlížecího systému",1200]
[null,"Sokolovská 149, Jihlava - Vybudování náhradního zdroje napájení",600]
[null,"Rekonstrukce radiové sítě",550]
[null,"Elektrocentrála pro budovu MP ",200]
["CELKEM",null,{"$f":"SUM(C6:C20)","v":72881},{"$f":"SUM(D6:D20)","v":7863}]

{"sheet":"akční plán 2018 - C","index":4,"n_rows":58,"n_cols":4,"rows_kept":58,"cut":false,"hidden":false,"merged":[[3,0,3,1],[57,0,57,1],[51,0,51,3],[10,0,10,3],[4,0,4,3],[43,0,43,3]]}
["STRATEGICKÝ PLÁN ROZVOJE MĚSTA / Akční plán 2018"]
[]
["Priorita C - Udržitelný územní rozvoj města a správa města"]
["projekt / aktivita",null,"rozpočet 2018 v tis. Kč","dotace"]
["C1. Vytvoření podmínek pro kvalitní bydlení a další územní rozvoj města "]
[null,"Opravy bytů",{"$f":"5550+7145","v":12695}]
[null,"Územní plán města Jihlavy",1000]
[null,"Územní studie Jihlava II. etapa",1800]
[null,"U Mincovny 6,8 - rekonstrukce",850]
[null,"Revitalizace městských prostorů - arch. soutěž Masarykovo náměstí ",{"$f":"1429+500","v":1929}]
["C2. Zavést a rozvíjet integrovaný systém udržitelné městské mobility (SUMP)"]
[null,"Plán udržitelné městské mobility",1725]
[null,"Centrální dopravní terminál",9858]
[null,"Dopravní terminál - ul. Na Dolech, Jihlava",{"$f":"7670+2500","v":10170},6907]
[null,"Zastávka MHD Popice",250]
[null,"Zastávka MHD ul. Vrchlického",200]
[null,"Stavební preference na komunikaci Hradební – Brněnská, Jihlava (bude se přidávat)",7500]
[null,"Chodník od ul. Sokolovská 99 k ZŠ Kollárova",2000]
[null,"Oprava komunikace s přilehlým chodníkem na ul. Úprkova, Jihlava",5100]
[null,"Rozšíření propojky Kosovská - Brtnická ",500]
[null,"Chodník  a parkoviště ul. Březinova",150]
[null,"Chodníky Brtnické předměstí, Jihlava",600]
[null,"Chodník a veřejné osvětlení Zborná ",300]
[null,"Rozšíření komunikace ul. Mlýnská",{"$f":"453+3500","v":3953}]
[null,"Smíšená stezka pro pěší a cyklisty a cyklostezka - průmyslový park Jihlava",{"$f":"5700+3500","v":9200},5130]
[null,"Úprava křižovatky ul. Žižkova a Rantířovská",17000]
[null,"Úprava dopravního režimu ul. Znojemská - Brtnická, Jihlava",453]
[null,"Manipulační plocha, ul. Telečská",5983]
[null,"Mimoúrovňová křižovatka I/38 - R. Havelky",1802]
[null,"Mosty přes dálniční přivaděč ",15988]
[null,"Zvýšení bezpečnosti v průmyslovém parku, Jihlava ",{"$f":"15178+8000","v":23178},15461]
[null,"Zvýšení bezpečnosti dopravy v Jihlavě - II. etapa",3000]
[null,"Antonínův Důl - chodník a kanalizace II. etapa",7700]
[null,"Bezpečnost dopravy na přechodech pro chodce",15432,6298]
[null,"Nákup (odkup) radaru na úsekové měření rychlosti",1600]
[null,"Vybudování parkoviště P+R, ul. Žižkova, Jihlava",{"$f":"20000+9500","v":29500},13115]
[null,"Cyklostezka R08 - Pávov (průmyslová zóna - sever)",{"$f":"68611+12000","v":80611},49500]
[null,"Cyklostezka G04 ul. Mlýnská - Helenínská (Plastikov)",900]
[null,"Parkoviště (ul. Halasova, ul. Nad Plovárnou, ul. Zimní, ul. Hálkova)",{"$f":"1829+161+800","v":2790}]
[null,"Projekční příprava komunikací a chodníků (chodník VO Brtnická, propojení ul. Brněnská-Kosovská, ul. Hálkova, ul. Wolkerova, ul. Telečská, sjezd Pávov)",{"$f":"264+1840+416+300+600","v":3420}]
[null,"Bezbariérová úprava zastávek MHD Telečská a chodník a parkovací pruh v ul. Wolkerova",2986]
[null,"Rozšíření trolejbusové dopravy - sever",8000]
[null,"Naváděcí parkovací systém, Jihlava",500]
["C3. Zachování životního protředí, modernizace a rozšíření technické infrastruktury "]
[null,"Veřejné osvětlení Pávov",5850]
[null,"Skalka - revitalizace vodní nádrže",50]
[null,"Investice do vodohospodářské infrastruktury ve městě",{"$f":"500+250+1000+250+300+5200+867.746+4285.094+32875.9+225.6+415+669+813.707+399.207+5000+255.2","v":53306.454000000005}]
[null,"Výkup pozemků pod stávající skládkou TO v Henčově",15600]
[null,"Rozšíření kompostárny v areálu skládky Henčov",857]
[null,"Zhotovení zpevněných stanovišť kontejnerů",2837]
[null,"Aktualizace energetické koncepce",350]
["C4.  Zkvalitnění správních služeb magistrátu a zapojení občanů do plánování a rozvoje města"]
[null,"Třetí aktualizace dat pasportu zeleně ",1500]
[null,"Programové vybavení, výpočetní technika, zařízení",4250]
[null,"Rozšíření a modernizace informačního systému statutárního města Jihlavy ",7000]
[null,"Diskové úložiště, iSCSI/FC switche",2700]
[null,"Vyvolávací systémy",600]
["CELKEM",null,{"$f":"SUM(C11:C55)","v":363949.45400000003},{"$f":"SUM(D6:D55)","v":96411}]

{"sheet":"akční plán 2018 - D","index":5,"n_rows":22,"n_cols":4,"rows_kept":22,"cut":false,"hidden":false,"merged":[[3,0,3,1],[21,0,21,1],[10,0,10,3],[2,0,2,3],[4,0,4,1],[19,0,19,1]]}
["STRATEGICKÝ PLÁN ROZVOJE MĚSTA / Akční plán 2018"]
[]
["Priorita D - Kultura, sport, volnočasové aktivity a cestovní ruch"]
["projekt / aktivita",null,"rozpočet 2018 v tis. Kč","dotace"]
["D1. Zajištění podmínek pro koncepční rozvoj kultury a podporu místní tvorby"]
[null,"Podzemí - aktualizace stávající prohlídkové trasy",200]
[null,"Pocta J. Hauptovi - výstava fotografií",{"$f":"70+80","v":150}]
[null,"Aktualizace grantového systému fáze I  (dotace a transfery)",9000]
[null,"Akční plán 2017 - 2018 (strategie kultury a cestovního ruchu) - projekty OŠKT",1270]
[null,"100. výročí vzniku ČSR",{"$f":"100+100","v":200}]
["D2. Zajištění podmínek a kapacit pro koordinaci celoroční nabídky kultury a trávení volného času pro místní i návštěvníky "]
[null,"Akční plán 2017 - 2018 (strategie kultury a cestovního ruchu) - projekty v oblasti kultury a CR ",650]
[null,"Výdaje na provoz Turistických  informačního center, Domu Gustava Mahlera a podzemí",4710]
[null,"Výdaje na expozici v Domě Gustava Mahlera",200]
["D3. ","Zvýšení atraktivity centra města"]
[]
["D4. ","Rozvoj Stříbrného údolí jakožto klíčové součásti značky města "]
[null,"Územní studie \"Stříbrného údolí\" a Starohorský náhon",650]
[null,"Studie využitelnosti Modety (skicovné, odměny, soutěž)",370]
["D5. Rozvoj sportovní infrastruktury"]
[null,"Rekonstrukce Horáckého zimního stadionu",2537]
["CELKEM",null,{"$f":"SUM(C6:C21)","v":19937}]